Cogmind - Beta 10.2 @@@ ROGUE MODE // 2021.06.24 @ 00:28:21 Player: CrossedViper Result: Destroyed by B-75 Beast with Magnetic Acceleration Cannon Performance ------------- Evolutions (4) 2000 Regions Visited (16) 3200 Robots Destroyed (120) 600 Value Destroyed (3996) 3996 Prototype IDs (33) 660 Alien Tech Used (0) 0 Bonus (241) 241 TOTAL SCORE: 10697 Bonus ------- High Alert Combat Kills 123 Follower Combat Kills 304 Aligned with FarCom 300 Friendly Fire -486 Cogmind --------- Core Integrity 0/850 Matter 274/300 Energy 99/100 System Corruption 3% Temperature Cool (12) Movement Core (50) Location -5/Proximity Caves Parts ------- > --- POWER (2) -------- (None) > --- PROPULSION (4) --- (None) > --- UTILITY (6) ------ Advanced Melee Analysis Suite > --- WEAPON (3) ------- Heavy Pick > --- INVENTORY (4) ---- Cold Fusion Reactor Dimensional Node Initializer Makeshift Sword Makeshift Spear Peak State ------------ > --- POWER ------------ Cold Fusion Reactor Cold Fusion Reactor > --- PROPULSION ------- Medium Treads Medium Treads Armored Huge Wheel > --- UTILITY ---------- Coolant Injector Medium Storage Unit Experimental Signal Interpreter Advanced Melee Analysis Suite Improved Light Armor Plating Force Field > --- WEAPON ----------- Ion Burst Cannon Coil Gun Heavy Pick > --- INVENTORY -------- Cold Fusion Reactor Cold Fusion Reactor Matter Compressor 0b10 Decoder Chip [Skirmisher] Dimensional Node Initializer Plasma Cutter Scythe CR-A16's Pointy Stick [Rating: 72] Favorites ----------- Power Cold Fusion Reactor Engine Ion Engine Power Core Light Nuclear Core Reactor Cold Fusion Reactor Propulsion Medium Treads Treads Medium Treads Leg Flexi-carbon Leg Wheel Compact Wheel Hover Unit Combat Airjet Flight Unit VTOL Module Utility Advanced Melee Analysis Suite Device Coolant Injector Storage High-capacity Storage Unit Processor Advanced Melee Analysis Suite Hackware Hacking Suite Protection Improved Light Armor Plating Weapon Heavy Pick Energy Cannon Ion Burst Cannon Ballistic Gun Assault Rifle Ballistic Cannon Gauss Cannon Launcher Rocket Launcher Special Weapon Plasma Cutter Slashing Weapon Phasing Sabre Piercing Weapon Heavy Pick Build | -11 -10 -10 -10 -9 -8 -8 -7 -7 -7 -7 -7 -6 -6 -6 -6 -5 ------- Run | Scr Mat Min Exi Min Mat Sto Fac Was Fac Low Low Fac Low Low Zio Pro Slots Evolved 8 | . . . . . 4 . 2 . . . . 2 . . . . Power 1 | . . . . . . . . . . . . 1 . . . . Propulsion 2 | . . . . . . . 1 . . . . 1 . . . . Utility 4 | . . . . . 3 . 1 . . . . . . . . . Weapon 1 | . . . . . 1 . . . . . . . . . . . Parts Attached 151 | 5 2 1 2 11 16 14 2 8 26 1 2 28 1 3 21 8 Power 16 | 1 . . . 1 1 2 . . 3 . . 6 . . . 2 Engine 6 | 1 . . . . 1 1 . . 2 . . 1 . . . . Core 7 | . . . . 1 . 1 . . 1 . . 3 . . . 1 Reactor 3 | . . . . . . . . . . . . 2 . . . 1 Propulsion 43 | 2 . . 1 5 3 3 1 5 8 . 2 9 . . 2 2 Treads 19 | 2 . . . 2 3 3 1 4 . . . 2 . . 1 1 Leg 4 | . . . . 1 . . . . . . . 2 . . . 1 Wheel 6 | . . . 1 2 . . . . . . . 2 . . 1 . Hover 9 | . . . . . . . . 1 8 . . . . . . . Flight 5 | . . . . . . . . . . . 2 3 . . . . Utility 48 | . 2 1 1 1 6 3 1 1 13 . . 11 . 3 3 2 Device 12 | . . 1 . . 1 1 . . 4 . . 3 . 2 . . Storage 7 | . 2 . 1 . 1 . 1 . 1 . . 1 . . . . Processor 8 | . . . . . . . . 1 2 . . 2 . 1 1 1 Hackware 2 | . . . . . 1 . . . . . . 1 . . . . Protection 19 | . . . . 1 3 2 . . 6 . . 4 . . 2 1 Artifact . | . . . . . . . . . . . . . . . . . Weapon 44 | 2 . . . 4 6 6 . 2 2 1 . 2 1 . 16 2 Energy Gun . | . . . . . . . . . . . . . . . . . Energy Cannon 4 | . . . . . . 2 . . . . . 2 . . . . Ballistic Gun 16 | 2 . . . 2 5 3 . 1 . . . . 1 . 2 . Ballistic Cannon 2 | . . . . 1 1 . . . . . . . . . . . Launcher 2 | . . . . 1 . 1 . . . . . . . . . . Special Weapon 2 | . . . . . . . . . . . . . . . 2 . Impact Weapon . | . . . . . . . . . . . . . . . . . Slashing Weapon 8 | . . . . . . . . . 1 . . . . . 7 . Piercing Weapon 10 | . . . . . . . . 1 1 1 . . . . 5 2 Special Melee Weapon . | . . . . . . . . . . . . . . . . . Unidentified Prototypes 10 | . . 1 . . . 2 . . 3 . . 4 . . . . Parts Lost 51 | . . . 1 4 6 6 . 7 1 3 3 2 . 1 4 13 Power 5 | . . . . 1 . 1 . 1 . . . . . . . 2 Propulsion 20 | . . . . 3 . 2 . 3 1 2 . 2 . 1 1 5 Utility 15 | . . . . . 3 1 . 2 . . 2 . . . 3 4 Weapon 11 | . . . 1 . 3 2 . 1 . 1 1 . . . . 2 Highest Loss Streak 5 | . . . 1 2 4 4 . 4 1 2 3 1 . 1 3 5 Average Slot Usage (%) 85 | . 82 85 93 95 89 95 94 58 68 84 69 71 99 95 91 67 Engine 4 | . 14 14 14 7 5 2 7 3 3 7 7 4 . . . . Core 1 | . . . . 5 3 3 . . 1 . . . . . . 3 Reactor 4 | . . . . . . . . . . . . 2 13 13 13 8 Treads 12 | . 28 28 26 7 16 17 23 13 . . . 1 13 13 12 6 Wheel 3 | . . . 1 10 . . . . . . . 1 13 8 6 2 Hover 3 | . . . . . . . . 2 21 12 7 3 . . . . Device 8 | . . . . . 4 6 7 4 12 23 19 12 13 12 11 6 Storage 10 | . 11 14 22 21 16 18 17 10 1 7 7 3 6 6 6 5 Processor 5 | . . . . . . . . 4 4 7 7 9 13 13 12 9 Protection 6 | . . . . 6 14 13 15 7 10 7 3 4 6 6 5 1 Energy Cannon 1 | . . . . . . 8 7 . . . . . 6 6 1 . Ballistic Gun 9 | . 28 28 28 18 17 15 15 9 . . . . 5 6 3 . Ballistic Cannon 1 | . . . . 8 8 2 . . . . . . . . . . Slashing Weapon 2 | . . . . . . . . . 5 7 2 . . . 1 16 Piercing Weapon 4 | . . . . . . . . . 7 9 7 6 6 6 12 1 Naked Turns . | . . . . . . . . . . . . . . . . . Heaviest Build 91 | 9 41 41 57 61 73 75 91 75 58 61 59 49 54 59 59 68 Greatest Support 64 | 3 40 40 40 32 43 42 64 64 57 57 22 56 32 32 56 51 Greatest Overweight (x) 12 | 2 2 1 3 4 2 3 1 1 1 2 2 3 1 3 3 12 Average Overweight (x) 1 | 1 1 1 1 2 1 1 1 . . 1 1 . 1 2 1 1 Largest Inventory Capacity 24 | 4 14 12 18 18 18 18 24 18 10 10 10 10 8 8 8 8 Average Capacity 10 | 4 10 12 15 15 17 18 19 13 4 10 10 7 8 8 8 7 Most Carried 18 | 4 7 9 9 16 18 18 17 17 4 5 5 6 4 8 8 7 Average Carried 8 | 2 6 8 9 11 16 17 17 12 3 2 5 4 3 7 7 6 Final Capacity 18 | 4 12 12 18 12 18 18 18 4 10 10 10 8 8 8 8 4 Final Carried 18 | 4 7 9 9 12 18 18 17 4 2 5 5 4 4 8 7 4 Class Distribution -------------------- 40% | Scavenger-Mutant 37% | Mutant 10% | Scavenger-Tank 3% | Derelict-Mutant 3% | Commander-Tank 3% | Tank Dominant Class ---------------- Mutant | -10/Materials Mutant | -10/Mines Mutant | -10/Exiles Mutant | -9/Mines Scavenger-Tank | -8/Materials Commander-Tank | -8/Storage Commander-Tank | -7/Factory Mutant | -7/Waste Mutant | -7/Factory Mutant | -7/Lower Caves Mutant | -7/Lower Caves Mutant | -6/Factory Scavenger-Mutant | -6/Lower Caves Scavenger-Mutant | -6/Lower Caves Scavenger-Mutant | -6/Zion Scavenger-Mutant | -5/Proximity Caves Resources | -11 -10 -10 -10 -9 -8 -8 -7 -7 -7 -7 -7 -6 -6 -6 -6 -5 ----------- Run | Scr Mat Min Exi Min Mat Sto Fac Was Fac Low Low Fac Low Low Zio Pro Matter Collected 3313 | 195 147 94 . 272 460 578 . . 537 120 31 264 167 180 230 38 Remotely . | . . . . . . . . . . . . . . . . . Salvage Created 5455 | . 74 172 28 84 659 873 . 592 855 206 92 814 58 109 431 408 Parts 258 | . 9 12 2 4 38 32 . 7 59 9 7 42 5 2 16 14 Haulers Intercepted 5 | . . . . . 1 1 . . 1 . . 2 . . . . Recyclers Shooed 2 | . . . . 1 . 1 . . . . . . . . . . Parts Field Recycled . | . . . . . . . . . . . . . . . . . Retrieved Matter . | . . . . . . . . . . . . . . . . . Parts Self-Destructed 32 | . . . . . . . . . . 9 5 . 5 2 . 11 Prevented 2 | . . . . . . . . . . 2 . . . . . . Kills | -11 -10 -10 -10 -9 -8 -8 -7 -7 -7 -7 -7 -6 -6 -6 -6 -5 ------- Run | Scr Mat Min Exi Min Mat Sto Fac Was Fac Low Low Fac Low Low Zio Pro Combat Hostiles Destroyed 102 | . 4 4 . 6 17 15 . 2 19 8 4 8 3 1 4 7 Melee 49 | . . . . . . . . . 19 8 4 8 . . 3 7 Guns 32 | . 4 4 . 1 9 12 . 2 . . . . . . . . Cannons 17 | . . . . 3 8 3 . . . . . . 3 . . . AOE 2 | . . . . 2 . . . . . . . . . . . . Classes Destroyed 18 | . 2 . 1 3 6 1 . 1 1 . . . . 2 . 1 Worker 5 | . . . . . 4 . . . 1 . . . . . . . Builder 1 | . . . . 1 . . . . . . . . . . . . Hauler 5 | . . . . . 1 1 . . 1 . . 2 . . . . Recycler 3 | . . . . . . 1 . . . . . 2 . . . . Minesweeper 1 | . . . . . . . . . . . . . . 1 . . Watcher 2 | . . . . . 1 . . . . . . 1 . . . . Swarmer 41 | . 3 . . . 6 . . . 9 8 4 4 3 . . 4 Grunt 35 | . 1 4 . 2 8 10 . . 7 . . 2 . . . 1 Brawler 1 | . . . . . . . . . . . . . . . . 1 Duelist 1 | . . . . . 1 . . . . . . . . . . . Sentry 9 | . . . . . 1 5 . . 1 . . 2 . . . . Demolisher 1 | . . . . 1 . . . . . . . . . . . . Hunter 3 | . . . . . 1 . . . 1 . . . . . . 1 Programmer 2 | . . . . . . . . . 2 . . . . . . . Behemoth 1 | . . . . . . . . . . . . . . 1 . . Compactor 2 | . . . . . . . . 2 . . . . . . . . Zionite 2 | . . . 1 . . . . . . . . . . . 1 . Assembled 3 | . . . . 3 . . . . . . . . . . . . Butcher 3 | . . . . . . . . . . . . . . . 3 . Marauder 2 | . . . . . . . . . . . . . . . 2 . Best Kill Streak 8 | . 3 2 . 4 8 4 . 2 6 3 4 4 3 1 1 4 Combat Bots Only 7 | . 3 2 . 3 7 4 . 2 6 3 4 4 3 1 1 4 Max Kills in Single Turn 2 | . 1 1 1 2 2 1 . 1 1 1 1 1 1 1 1 2 Gunslinging . | . . . . . . . . . . . . . . . . . Exploded 2 | . . . . 2 . . . . . . . . . . . . Melee 2 | . . . . . . . . . 1 1 1 1 . . 1 2 Uniques/NPCs Destroyed . | . . . . . . . . . . . . . . . . . Combat | -11 -10 -10 -10 -9 -8 -8 -7 -7 -7 -7 -7 -6 -6 -6 -6 -5 -------- Run | Scr Mat Min Exi Min Mat Sto Fac Was Fac Low Low Fac Low Low Zio Pro Damage Taken 9825 | . 143 235 114 515 1114 1382 . 307 1148 311 388 398 337 90 1384 1959 Core 1841 | . 21 68 11 100 132 122 . 117 244 62 110 99 65 . 189 501 Absorbed by Shields 180 | . . . . . . . . . . . . . . . 180 . Core Remaining (%) 49 | 100 . . . 20 . 53 . . . . 23 . . . . . Volleys Fired 206 | . 12 14 1 28 48 50 . 20 . . . . 12 4 17 . Largest 3 | . 2 2 2 2 3 3 . 3 . . . . 2 2 1 . Hottest 158 | . 40 40 40 68 94 158 . 75 . . . . 130 130 30 . Shots Fired 457 | . 24 28 2 44 137 123 . 58 . . . . 16 8 17 . Gun 327 | . 24 28 2 29 91 77 . 58 . . . . 4 4 10 . Cannon 121 | . . . . 13 46 46 . . . . . . 12 4 . . Launcher 2 | . . . . 2 . . . . . . . . . . . . Special 7 | . . . . . . . . . . . . . . . 7 . Kinetic 405 | . 24 28 2 42 137 96 . 58 . . . . 4 4 10 . Thermal 50 | . . . . . . 27 . . . . . . 12 4 7 . Explosive 2 | . . . . 2 . . . . . . . . . . . . Electromagnetic . | . . . . . . . . . . . . . . . . . Robot Hit Streak 24 | . 8 12 13 14 12 15 . 24 . . . . 4 9 11 . Robot Miss Streak 4 | . 2 2 . 3 4 4 . 1 . . . . 3 2 2 . Penetration Max 1 | . . . . . 1 1 . . . . . . . . . . Secondary Targets 4 | . . 1 . . . 1 . 2 . . . . . . . . Max Gunslinging Chain 1 | . . 1 . . . 1 . 1 . . . . . . . . Shots Hit Robots 470 | . 15 21 1 20 90 82 . 52 42 16 5 27 11 9 41 38 Core Hits 195 | . 5 8 1 10 42 32 . 10 29 8 4 17 3 3 11 12 Critical Hits 17 | . . . . 1 7 2 . . . . . 2 . 1 4 . Critical Kills 5 | . . . . 1 2 . . . . . . 1 . 1 . . Critical Parts Destroyed 10 | . . . . . 5 2 . . . . . 1 . . 2 . Melee Attacks 210 | . . . . . . . . . 68 26 8 32 . 2 31 43 Impact . | . . . . . . . . . . . . . . . . . Slashing 51 | . . . . . . . . . 9 3 . . . . . 39 Piercing 159 | . . . . . . . . . 59 23 8 32 . 2 31 4 Sneak Attacks 14 | . . . . . . . . . 5 . . 5 . 1 1 2 Combat Hostiles 3 | . . . . . . . . . 1 . . . . . . 2 Follow-up Attacks 27 | . . . . . . . . . 5 2 . . . . 8 12 Damage Inflicted 12362 | . 171 280 12 473 1504 1936 . 930 1596 474 156 1335 187 394 1033 1881 Guns 3529 | . 171 280 12 122 761 1134 . 930 . . . . . 71 48 . Cannons 2062 | . . . . 188 743 740 . . . . . . 187 204 . . Explosions 142 | . . . . 142 . . . . . . . . . . . . Melee 6477 | . . . . . . . . . 1596 474 156 1335 . 119 916 1881 Ramming 83 | . . . . 21 . 62 . . . . . . . . . . Kinetic 4797 | . 171 280 12 310 1504 1471 . 930 . . . . . 71 48 . Thermal 863 | . . . . . . 403 . . . . . . 187 204 69 . Explosive 142 | . . . . 142 . . . . . . . . . . . . Electromagnetic . | . . . . . . . . . . . . . . . . . Impact . | . . . . . . . . . . . . . . . . . Slashing 1958 | . . . . . . . . . 184 40 . . . . . 1734 Piercing 4519 | . . . . . . . . . 1412 434 156 1335 . 119 916 147 Highest Corruption 11 | . . . 4 4 . . . 10 11 11 11 . . . 1 3 Average Corruption 7 | . . . 4 4 . . . 6 10 11 11 . . . 1 2 Corruption Purged . | . . . . . . . . . . . . . . . . . Effects 110 | . . . . 13 . . . 8 41 31 7 . . . 1 9 Message Errors 26 | . . . . 1 . . . 1 7 10 2 . . . . 5 Matter Fused 21 | . . . . 1 . . . . 10 5 3 . . . . 2 Heat Flow Errors 8 | . . . . 2 . . . . 2 4 . . . . . . Energy Discharges 6 | . . . . 1 . . . . 3 1 . . . . 1 . Parts Rejected 1 | . . . . . . . . . 1 . . . . . . . Data Loss (minor) 10 | . . . . 3 . . . . 1 3 1 . . . . 2 Data Loss (major) 3 | . . . . . . . . 1 1 . 1 . . . . . Alerts 3 | . . . . . . . . . 1 2 . . . . . . Misdirections 17 | . . . . . . . . 1 10 6 . . . . . . Targeting Errors 14 | . . . . 5 . . . 4 5 . . . . . . . Weapon Failures 1 | . . . . . . . . 1 . . . . . . . . Overload Shots . | . . . . . . . . . . . . . . . . . Overflow Damage 417 | . . . . 6 6 . . . 57 32 2 22 11 . 2 279 Projectiles 19 | . . . . . 6 . . . . . . . 11 . 2 . Explosions 6 | . . . . 6 . . . . . . . . . . . . Melee 392 | . . . . . . . . . 57 32 2 22 . . . 279 Knockbacks 8 | . . . . 1 5 2 . . . . . . . . . . Impact 2 | . . . . . . 2 . . . . . . . . . . Kinetic 5 | . . . . 1 4 . . . . . . . . . . . Secondary 1 | . . . . . 1 . . . . . . . . . . . Self-Inflicted Damage 75 | . . . . 75 . . . . . . . . . . . . Shots 2 | . . . . 2 . . . . . . . . . . . . Rammed 10 | . . . . 2 . 8 . . . . . . . . . . Targets Rammed 11 | . . . . 2 . 9 . . . . . . . . . . Kicked . | . . . . . . . . . . . . . . . . . Crushed 1 | . . . . . . 1 . . . . . . . . . . Highest Temperature 238 | . . 8 . 192 160 238 . 199 160 218 . 4 117 61 . . Average Temperature 73 | . . 2 . 83 46 80 . 119 75 102 . 2 62 32 . . Received Heat Transfer 1930 | . 6 135 . 136 405 567 . . 240 . . 120 . 12 . 309 Siege Activations . | . . . . . . . . . . . . . . . . . Robots Corrupted . | . . . . . . . . . . . . . . . . . Combat Hostiles . | . . . . . . . . . . . . . . . . . Parts Fried . | . . . . . . . . . . . . . . . . . Impact Corruptions . | . . . . . . . . . . . . . . . . . Robots Melted 2 | . . . . . . . . . . . . . . 1 1 . Combat Hostiles 2 | . . . . . . . . . . . . . . 1 1 . Parts Melted 15 | . . . . . 1 . . . . . . . . 4 10 . Heat Transferred 1264 | . . . . . . 555 . . . . . . 225 225 259 . Parts Sabotaged . | . . . . . . . . . . . . . . . . . Parts Stolen . | . . . . . . . . . . . . . . . . . Parts Stripped . | . . . . . . . . . . . . . . . . . Power Chain Reactions . | . . . . . . . . . . . . . . . . . Missiles Intercepted . | . . . . . . . . . . . . . . . . . Alert | -11 -10 -10 -10 -9 -8 -8 -7 -7 -7 -7 -7 -6 -6 -6 -6 -5 ------- Run | Scr Mat Min Exi Min Mat Sto Fac Was Fac Low Low Fac Low Low Zio Pro Peak Influence 824 | . 124 148 . 60 406 746 290 101 824 . . 514 . . . . Initial 290 | . . 48 . . . 170 290 101 . . . 258 . . . . Average 232 | . 90 95 . 25 275 410 290 44 262 . . 327 . . . . Maximum Alert Level 3 | . . . . . 2 3 1 . 3 . . 2 . . . . Low Security (%) 48 | 100 100 100 . 100 29 13 . 100 44 . . . . . . . Level 1 35 | . . . . . 55 44 100 . 37 . . 83 . . . . Level 2 10 | . . . . . 15 29 . . 3 . . 16 . . . . Level 3 4 | . . . . . . 12 . . 14 . . . . . . . Level 4 . | . . . . . . . . . . . . . . . . . Level 5 . | . . . . . . . . . . . . . . . . . High Security . | . . . . . . . . . . . . . . . . . Max Security . | . . . . . . . . . . . . . . . . . Squads Dispatched 19 | . 1 . . . 3 4 . . 6 . . 5 . . . . Investigation 6 | . . . . . . 2 . . 4 . . . . . . . Extermination 1 | . . . . . . . . . . . . 1 . . . . Reinforcement 8 | . 1 . . . 3 2 . . 1 . . 1 . . . . Assault 1 | . . . . . . . . . 1 . . . . . . . Garrison 3 | . . . . . . . . . . . . 3 . . . . Intercept . | . . . . . . . . . . . . . . . . . Construction Impeded . | . . . . . . . . . . . . . . . . . Haulers Reinforced 1 | . . . . . . . . . . . . 1 . . . . Stealth | -11 -10 -10 -10 -9 -8 -8 -7 -7 -7 -7 -7 -6 -6 -6 -6 -5 --------- Run | Scr Mat Min Exi Min Mat Sto Fac Was Fac Low Low Fac Low Low Zio Pro Distress Signals 8 | . 2 . . . 4 2 . . . . . . . . . . Communications Jammed . | . . . . . . . . . . . . . . . . . Distress Signals . | . . . . . . . . . . . . . . . . . Times Spotted 164 | . 7 4 6 10 32 27 . 6 25 10 4 12 3 1 10 7 Peak Tracking Total 9 | . 3 2 9 4 5 4 . 4 4 3 4 5 3 1 2 3 Tactical Retreats 21 | . . . . 2 4 . . . 3 2 . 2 . . 6 2 Traps | -11 -10 -10 -10 -9 -8 -8 -7 -7 -7 -7 -7 -6 -6 -6 -6 -5 ------- Run | Scr Mat Min Exi Min Mat Sto Fac Was Fac Low Low Fac Low Low Zio Pro Traps Triggered 10 | . . . . . . 4 1 . 5 . . . . . . . Indirectly . | . . . . . . . . . . . . . . . . . Trap Hack Attempts . | . . . . . . . . . . . . . . . . . Triggered . | . . . . . . . . . . . . . . . . . Disarmed . | . . . . . . . . . . . . . . . . . Reprogrammed . | . . . . . . . . . . . . . . . . . Reused 1 | . . . . . . . . . . . . . . 1 . . Traps Extracted . | . . . . . . . . . . . . . . . . . Installed 4 | . . . . . . . . . . . . . . 3 1 . Triggered 2 | . . . . . . . . . . 1 . . . 1 . . Machines | -11 -10 -10 -10 -9 -8 -8 -7 -7 -7 -7 -7 -6 -6 -6 -6 -5 ---------- Run | Scr Mat Min Exi Min Mat Sto Fac Was Fac Low Low Fac Low Low Zio Pro Machines Disabled 4 | . . . . 1 . 1 . . . . . . . 1 1 . Max in Single Turn 1 | . . . . 1 . 1 . . . . . . . 1 1 . Machines Sabotaged . | . . . . . . . . . . . . . . . . . Garrisons Compromised . | . . . . . . . . . . . . . . . . . Overloaded Fab Kills . | . . . . . . . . . . . . . . . . . Fab Network Shutdowns 1 | . . . . . . . . . 1 . . . . . . . Hacking | -11 -10 -10 -10 -9 -8 -8 -7 -7 -7 -7 -7 -6 -6 -6 -6 -5 --------- Run | Scr Mat Min Exi Min Mat Sto Fac Was Fac Low Low Fac Low Low Zio Pro Machines Accessed 22 | . 4 . 2 . 1 8 1 . 4 1 . 1 . . . . Terminals 16 | . 4 . . . 1 8 1 . 2 . . . . . . . Fabricators 2 | . . . . . . . . . 2 . . . . . . . Repair Stations . | . . . . . . . . . . . . . . . . . Recycling Units . | . . . . . . . . . . . . . . . . . Scanalyzers . | . . . . . . . . . . . . . . . . . Garrison Access 1 | . . . . . . . . . . . . 1 . . . . Total Hacks 47 | . 8 . 2 . 2 20 1 . 11 1 . 2 . . . . Successful 25 | . 5 . 2 . 1 9 . . 7 1 . . . . . . Failed 21 | . 2 . . . 1 11 1 . 4 . . 2 . . . . Catastrophic 3 | . . . . . . 1 1 . . . . 1 . . . . Database Lockouts 1 | . 1 . . . . . . . . . . . . . . . Manual 27 | . 8 . 1 . 2 11 . . 5 . . . . . . . Terminals 36 | . 8 . . . 2 20 1 . 5 . . . . . . . Fabricators 6 | . . . . . . . . . 6 . . . . . . . Repair Stations . | . . . . . . . . . . . . . . . . . Recycling Units . | . . . . . . . . . . . . . . . . . Scanalyzers . | . . . . . . . . . . . . . . . . . Garrison Access 2 | . . . . . . . . . . . . 2 . . . . Terminal Hacks 15 | . 3 . 2 . 1 6 . . 2 1 . . . . . . Record 1 | . . . 1 . . . . . . . . . . . . . Part Schematic 1 | . . . . . . . . . 1 . . . . . . . Robot Analysis 1 | . 1 . . . . . . . . . . . . . . . Open Door 5 | . . . . . . 4 . . . 1 . . . . . . Branch Access Points 3 | . 1 . . . 1 . . . 1 . . . . . . . Terminal Index 2 | . 1 . . . . 1 . . . . . . . . . . Scanalyzer Index 1 | . . . . . . 1 . . . . . . . . . . EX-Prototype ID Bank 1 | . . . 1 . . . . . . . . . . . . . Fabricator Hacks 3 | . . . . . . . . . 3 . . . . . . . Load Schematic 2 | . . . . . . . . . 2 . . . . . . . Build 1 | . . . . . . . . . 1 . . . . . . . Repair Station Hacks . | . . . . . . . . . . . . . . . . . Recycling Unit Hacks . | . . . . . . . . . . . . . . . . . Scanalyzer . | . . . . . . . . . . . . . . . . . Garrison Access Hacks . | . . . . . . . . . . . . . . . . . Unauthorized Hacks 7 | . 2 . . . . 3 . . 2 . . . . . . . Terminals 7 | . 2 . . . . 3 . . 2 . . . . . . . Track 1 | . . . . . . . . . 1 . . . . . . . Botnet 5 | . 2 . . . . 2 . . 1 . . . . . . . Operators 1 | . . . . . . 1 . . . . . . . . . . Fabricators . | . . . . . . . . . . . . . . . . . Repair Stations . | . . . . . . . . . . . . . . . . . Recycling Units . | . . . . . . . . . . . . . . . . . Scanalyzers . | . . . . . . . . . . . . . . . . . Garrison Access . | . . . . . . . . . . . . . . . . . Data Cores Recovered . | . . . . . . . . . . . . . . . . . Used . | . . . . . . . . . . . . . . . . . Hacking Detections 14 | . 2 . . . 1 5 1 . 4 . . 1 . . . . Full Trace Events 4 | . . . . . . 2 . . 2 . . . . . . . Feedback Events . | . . . . . . . . . . . . . . . . . Feedback Blocked . | . . . . . . . . . . . . . . . . . Robot Schematics Acquired . | . . . . . . . . . . . . . . . . . Robots Built . | . . . . . . . . . . . . . . . . . Matter . | . . . . . . . . . . . . . . . . . Time . | . . . . . . . . . . . . . . . . . Total Robot Build Rating . | . . . . . . . . . . . . . . . . . Part Schematics Acquired 1 | . . . . . . . . . 1 . . . . . . . Parts Built 2 | . . . . . . . . . 2 . . . . . . . Matter 168 | . . . . . . . . . 168 . . . . . . . Time 28 | . . . . . . . . . 28 . . . . . . . Total Part Build Rating 8 | . . . . . . . . . 8 . . . . . . . Parts Repaired . | . . . . . . . . . . . . . . . . . Time . | . . . . . . . . . . . . . . . . . Parts Recycled . | . . . . . . . . . . . . . . . . . Recycled Matter . | . . . . . . . . . . . . . . . . . Retrieved Matter . | . . . . . . . . . . . . . . . . . Retrieved Components . | . . . . . . . . . . . . . . . . . Parts Scanalyzed . | . . . . . . . . . . . . . . . . . Part Schematics Acquired . | . . . . . . . . . . . . . . . . . Parts Damaged . | . . . . . . . . . . . . . . . . . Bothacking | -11 -10 -10 -10 -9 -8 -8 -7 -7 -7 -7 -7 -6 -6 -6 -6 -5 ------------ Run | Scr Mat Min Exi Min Mat Sto Fac Was Fac Low Low Fac Low Low Zio Pro Used RIF Installer . | . . . . . . . . . . . . . . . . . Robots Hacked . | . . . . . . . . . . . . . . . . . Non-combat . | . . . . . . . . . . . . . . . . . Combat . | . . . . . . . . . . . . . . . . . Robot Hacks Applied . | . . . . . . . . . . . . . . . . . Relay Couplers Released . | . . . . . . . . . . . . . . . . . Robots Rewired . | . . . . . . . . . . . . . . . . . Allies Hacked . | . . . . . . . . . . . . . . . . . Hacks Repelled . | . . . . . . . . . . . . . . . . . Allies | -11 -10 -10 -10 -9 -8 -8 -7 -7 -7 -7 -7 -6 -6 -6 -6 -5 -------- Run | Scr Mat Min Exi Min Mat Sto Fac Was Fac Low Low Fac Low Low Zio Pro Total Allies 11 | . . . . 1 . 10 . . . . . . . . . . Largest Group 10 | . . . . . 1 10 6 2 1 . . . . . . . Highest-Rated Group 173 | . . . . . 31 173 109 45 16 . . . . . . . Highest-Rated Ally 31 | . . . . . 31 29 29 29 16 . . . . . . . Total Orders . | . . . . . . . . . . . . . . . . . Ally Attacks 88 | . . . . . 13 48 . 27 . . . . . . . . Total Damage 1199 | . . . . . 144 683 . 372 . . . . . . . . Kills 13 | . . . . . 3 10 . . . . . . . . . . Allies Corrupted . | . . . . . . . . . . . . . . . . . Allies Melted . | . . . . . . . . . . . . . . . . . Intel | -11 -10 -10 -10 -9 -8 -8 -7 -7 -7 -7 -7 -6 -6 -6 -6 -5 ------- Run | Scr Mat Min Exi Min Mat Sto Fac Was Fac Low Low Fac Low Low Zio Pro Robot Analysis Total 1 | . 1 . . . . . . . . . . . . . . . Derelict Logs Recovered 6 | . . 1 . . . . . . . 3 . . 1 . 1 . Drone Launches . | . . . . . . . . . . . . . . . . . Drone Recoveries . | . . . . . . . . . . . . . . . . . Exploration | -11 -10 -10 -10 -9 -8 -8 -7 -7 -7 -7 -7 -6 -6 -6 -6 -5 ------------- Run | Scr Mat Min Exi Min Mat Sto Fac Was Fac Low Low Fac Low Low Zio Pro Turns Passed 9435 | 74 295 429 670 535 771 832 73 164 827 731 134 501 566 597 1493 743 Spaces Moved 5920 | 56 143 214 380 246 319 349 42 130 900 394 65 375 482 449 950 426 Core 208 | 56 16 . . . . . . 94 38 . . . . . . 4 Treads 1599 | . 127 214 324 74 319 349 42 36 . . . 18 . . 64 32 Legs 184 | . . . . 22 . . . . . . . 5 . . . 157 Wheels 2294 | . . . 56 150 . . . . . . . 38 482 449 886 233 Hover 1426 | . . . . . . . . . 862 394 65 105 . . . . Flight 209 | . . . . . . . . . . . . 209 . . . . Fastest Speed 27 | 50 150 180 130 110 180 172 170 50 46 128 150 27 110 110 110 50 Average Speed 128 | 113 175 180 172 154 181 176 170 83 56 173 179 80 110 121 124 148 Slowest Speed 650 | 150 180 180 180 240 200 220 170 172 128 220 220 180 110 130 240 650 Overloaded Moves . | . . . . . . . . . . . . . . . . . Propulsion Burnouts . | . . . . . . . . . . . . . . . . . Robots Hopped . | . . . . . . . . . . . . . . . . . Cave-ins Triggered 1 | . . . . . . . . . . . . . . . 1 . Exploration Rate (%) 45 | 3 35 62 70 55 34 57 2 76 24 62 13 11 65 56 80 64 Regions Visited 16 Branch Regions 10 Pre-discovered Areas 3 | . . . 1 . . . . . . 1 . . . . 1 . Known Exits Taken 7 | . 1 . . . 1 . . . 1 1 . 1 1 1 . . Unknown Exits Taken 7 | 1 . 1 1 1 . 1 . . . . 1 . . . 1 . Scrap Searched 17 | . . 1 . 2 . . . . . 1 . . 3 5 3 2 Spaces Dug 26 | . . . . 16 . 2 . . 8 . . . . . . . Terrain Destroyed 74 | . . . . 22 24 20 . . 8 . . . . . . . Melee 8 | . . . . . . . . . 8 . . . . . . . Projectile 50 | . . . . 6 24 20 . . . . . . . . . . AOE 16 | . . . . 16 . . . . . . . . . . . . Terrain Rammed . | . . . . . . . . . . . . . . . . . Walls Destroyed . | . . . . . . . . . . . . . . . . . Machines Disabled . | . . . . . . . . . . . . . . . . . Actions | -11 -10 -10 -10 -9 -8 -8 -7 -7 -7 -7 -7 -6 -6 -6 -6 -5 --------- Run | Scr Mat Min Exi Min Mat Sto Fac Was Fac Low Low Fac Low Low Zio Pro Total 7117 | 64 164 231 391 359 414 467 45 164 1138 427 74 517 495 487 1191 489 Wait 486 | . 3 . 9 55 6 19 . 1 137 7 . 59 . 12 159 19 Move 5905 | 55 142 213 379 245 318 348 42 129 899 393 64 374 481 448 949 426 Hop . | . . . . . . . . . . . . . . . . . Pick Up 86 | 4 4 2 . 11 18 15 . 2 5 3 . 3 1 9 8 1 Fast Attach 77 | 5 1 . 1 4 6 3 1 1 18 1 2 22 . 1 7 4 Attach 51 | . 1 1 . 4 8 10 1 6 5 . . 6 1 1 3 4 Detach 4 | . . 1 . . . . . . . . . 2 . . 1 . Swap 23 | . . . 1 3 2 1 . 1 3 . . . . 1 11 . Drop 88 | . 1 . . 7 8 12 1 4 12 . . 19 . 6 13 5 Fire 206 | . 12 14 1 28 48 50 . 20 . . . . 12 4 17 . Melee 176 | . . . . . . . . . 59 23 8 32 . 2 22 30 Ram . | . . . . . . . . . . . . . . . . . Kick . | . . . . . . . . . . . . . . . . . Crush 11 | . . . . 2 . 9 . . . . . . . . . . Escape Stasis . | . . . . . . . . . . . . . . . . . Rewire . | . . . . . . . . . . . . . . . . . Trap 4 | . . . . . . . . . . . . . . 3 1 . Miscellaneous . | . . . . . . . . . . . . . . . . . Route ------- -11/Scrapyard -10/Materials (discovered 2 exits: *Min x2) -10/Mines (discovered 3 exits: *Mat x2 / *Exi) -10/Exiles -9/Mines -8/Materials (discovered 2 exits: *Fac / *Sto) -8/Storage -7/Factory -7/Waste -7/Factory (discovered 3 exits: *Fac / *Low x2) -7/Lower Caves -7/Lower Caves -6/Factory -6/Lower Caves -6/Lower Caves (discovered 2 exits: [*Fac] / *Zio) -6/Zion -5/Proximity Caves History --------- Turn | Location | Event 4 | -11/Scrapyard | Discovered new exit (range 15) 75 | -11/Scrapyard | Entered Materials 217 | -10/Materials | Discovered new exit (range 9) 233 | -10/Materials | Central database locked down 307 | -10/Materials | Build established: Mutant 341 | -10/Materials | Identified exit to Mines 370 | -10/Materials | Entered Mines 412 | -10/Mines | Met a Derelict bent on vengeance 423 | -10/Mines | Found a damaged Exp. Sensor Array with a note attached 426 | -10/Mines | Found Prototype Device 433 | -10/Mines | Identified Exp. Sensor Array 559 | -10/Mines | Discovered new exit (range 8) 651 | -10/Mines | Identified exit to Materials 669 | -10/Mines | Received a Rocket Launcher from a helpful Derelict 790 | -10/Mines | Deemed a non-threat by the Exiles lab entrance 792 | -10/Mines | Discovered new exit (range 5) 799 | -10/Mines | Entered Exiles 841 | -10/Exiles | Met 8R-AWN 870 | -10/Exiles | Met EX-HEX 960 | -10/Exiles | Met EX-DEC 990 | -10/Exiles | Learned location of Zion (-6) 1150 | -10/Exiles | Met EX-BIN 1175 | -10/Exiles | Aligned with FarCom system 1177 | -10/Exiles | Given EX-Vault access code 1219 | -10/Exiles | Opened EX-Vault 1260 | -10/Exiles | Warned to stay clear of 0b10 Research branches 1426 | -10/Exiles | Attacked by the Exiles 1459 | -10/Exiles | Discovered new exit (range 10) 1469 | -10/Exiles | Entered Mines 1470 | -9/Mines | Assembled infested the area 1546 | -9/Mines | Met a Derelict who couldn't figure out how to use a Trap Extractor 1650 | -9/Mines | Core integrity fell below 50% 1996 | -9/Mines | Discovered new exit (range 3) 1999 | -9/Mines | Received a Mining Laser from a helpful Derelict 2004 | -9/Mines | Entered Materials 2004 | -8/Materials | Accompanied by 1 ally 2004 | -8/Materials | Evolved 4 slots: Utility x3, Weapon x1 2316 | -8/Materials | Identified exit to Storage 2344 | -8/Materials | Build established: Scavenger-Tank 2505 | -8/Materials | Destroyed 7 combat bots 2507 | -8/Materials | Lost 4 parts (3u1w) 2576 | -8/Materials | Discovered new exit (range 15) 2775 | -8/Materials | Entered Storage 3069 | -8/Storage | Lost 4 parts (1n1u2w) 3357 | -8/Storage | Assisted by bots powering up and referring to "LRC-V3" 3547 | -8/Storage | Discovered new exit (range 8) 3607 | -8/Storage | Entered Factory 3607 | -7/Factory | Accompanied by 6 allies 3607 | -7/Factory | Evolved 2 slots: Propulsion x1, Utility x1 3668 | -7/Factory | Build established: Commander-Tank 3680 | -7/Factory | Sucked down chute 3680 | -7/Factory | Entered Waste 3695 | -7/Waste | EMP discharged 3711 | -7/Waste | Destroyed C-40 Crusher 3713 | -7/Waste | Spotted C-40 Crusher 3729 | -7/Waste | Destroyed C-40 Crusher 3733 | -7/Waste | Spotted C-40 Crusher 3751 | -7/Waste | Crushed by Compactor (1 part destroyed, 2 dropped) 3754 | -7/Waste | Crushed by Compactor (1 part destroyed, 2 dropped) 3768 | -7/Waste | Spotted C-40 Crusher 3779 | -7/Waste | Spotted C-40 Crusher 3785 | -7/Waste | Lost 3 parts (1p1u1w) 3786 | -7/Waste | Crushed by Compactor (1 part destroyed, 2 dropped) 3789 | -7/Waste | Crushed by Compactor (1 part destroyed, 2 dropped) 3792 | -7/Waste | Crushed by Compactor (1 part destroyed, 1 dropped) 3792 | -7/Waste | Crushed by Compactor (1 part destroyed, 1 dropped) 3795 | -7/Waste | EMP discharged 3795 | -7/Waste | System corruption reached 10% 3813 | -7/Waste | Spotted C-40 Crusher 3823 | -7/Waste | Lost 4 parts (3n1u) 3831 | -7/Waste | Discovered new exit (range 13) 3844 | -7/Waste | Entered Factory 3845 | -7/Factory | 6 allies followed down the chute 3965 | -7/Factory | Identified exit to Lower Caves 4095 | -7/Factory | Build established: Mutant 4379 | -7/Factory | Fabricated Microactuators (x2) 4494 | -7/Factory | Build established: Scavenger-Mutant 4547 | -7/Factory | Local fabrication network quarantined 4560 | -7/Factory | Core integrity fell below 50% 4625 | -7/Factory | Discovered new exit (range 15) 4644 | -7/Factory | First assault squad dispatched 4671 | -7/Factory | Entered Lower Caves 4853 | -7/Lower Caves | Build established: Mutant 4869 | -7/Lower Caves | Identified exit to Lower Caves 5402 | -7/Lower Caves | Entered another Lower Caves area 5402 | -7/Lower Caves | Discovered new exit (range 11) 5516 | -7/Lower Caves | Lost 3 parts (2u1w) 5536 | -7/Lower Caves | Entered Factory 5536 | -6/Factory | Evolved 2 slots: Power x1, Propulsion x1 5761 | -6/Factory | Garrison activated, responded to threat 5793 | -6/Factory | Found Prototype Processor 5793 | -6/Factory | Identified Exp. Signal Interpreter 6004 | -6/Factory | Discovered new exit (range 5) 6009 | -6/Factory | Identified exit to Lower Caves 6037 | -6/Factory | Entered Lower Caves 6232 | -6/Lower Caves | Build established: Scavenger-Mutant 6369 | -6/Lower Caves | Learned 4 Factory zone layouts 6497 | -6/Lower Caves | Discovered new exit (range 9) 6581 | -6/Lower Caves | Identified exit to Lower Caves 6603 | -6/Lower Caves | Entered another Lower Caves area 6694 | -6/Lower Caves | Found Alien Artifact 6781 | -6/Lower Caves | Spotted B-75 Beast 6856 | -6/Lower Caves | Destroyed B-75 Beast 6917 | -6/Lower Caves | Discovered new exit (range 7) 7153 | -6/Lower Caves | Discovered new exit (range 14) 7169 | -6/Lower Caves | Identified exit to Zion 7200 | -6/Lower Caves | Entered Zion 7247 | -6/Zion | Found CR-A16's Pointy Stick 7268 | -6/Zion | Discovered new exit (range 13) 7751 | -6/Zion | Acquired unknown access codes intercepted by a Zionite 7947 | -6/Zion | Given the Hacking Drone Bay 8175 | -6/Zion | Attacked by Zionites 8452 | -6/Zion | Spotted CG-U79(B) 8485 | -6/Zion | Destroyed CG-U79(B) 8511 | -6/Zion | Lost 3 parts (1n2u) 8551 | -6/Zion | Spotted TS-BKK(B) 8568 | -6/Zion | Crushed by falling debris 8601 | -6/Zion | Destroyed TS-BKK(B) 8693 | -6/Zion | Entered Proximity Caves 8888 | -5/Proximity Caves | Spotted B-75 Beast 8990 | -5/Proximity Caves | Build established: Derelict-Mutant 9073 | -5/Proximity Caves | Lost 5 parts (2p3n) 9075 | -5/Proximity Caves | Core integrity fell below 50% 9396 | -5/Proximity Caves | Build established: Scavenger-Mutant 9431 | -5/Proximity Caves | Core integrity fell below 20% 9436 | -5/Proximity Caves | Destroyed by B-75 Beast with Magnetic Acceleration Cannon Last Messages --------------- 09106_ Acquired Targeting Computer. 09147_ X4RIG0AOIZPR 8M6JR&<9|TK&W/S# 09223_ Searching scrap... 09223_ Found Imp. Heavy Armor Plating. 09223_ Found 23 Matter. 09224_ Acquired 23 matter. 09226_ Acquired Imp. Heavy Armor Plating. 09401_ CR-A16's Pointy Stick destroyed. 09411_ Knocked back. 09420_ Flexi-carbon Leg destroyed. 09420_ Knocked back. 09423_ Dropped Med. Storage Unit. 09423_ Dropped Rnf. Fission Core. 09424_ Dropped Cold Fusion Reactor. 09424_ Dropped Phasing Sabre. 09426_ System corrupted: Matter fused (-8). 09427_ Imp. Heavy Armor Plating destroyed. 09430_ Targeting Computer destroyed. 09430_ Coolant Injector destroyed. 09430_ Knocked back. Map ----- +----------------------------------------------------+ | ?????????????????????????????????????????????????? | | ?????????????????????????????????????????????????? | | ?????????????????????????????????????????????????? | | ?????????????????????????????????????????????????? | | ?????????????????????????????????????????????????? | | ?????????????????????????????????????????????????? | | ?????????????????????????????????????????????????? | | ##???????????????????????????????????????????????? | | #?????#????????????????????????????????????????? | | ????? ???????????????????????????????????????? | | ?????# ???????????? #?????????????????????????? | | #?????# ?????????? ##????????????????????????? | | ##????# ######?? ##???????????????????????? | | ##???# # #???????????????????????? | | ##??# #???????????????????????? | | #??### # #???????????????????????? | | # #????# ## # #???????????????????????? | | # #?????# ### ## #???##???????????????????????? | | ####?## ##### #????????????????????????????? | | ### #??# #???????????????????????????? | | #??# #######????????????????????? | | # #?## #????????????????????? | | #### ### $#????????????????????? | | ##### ### ## BB #????????????????????? | | #???##### ###?# BB #????????????????????? | | #?????## #??## @/ #????????????????????? | | ##????# #??# /!* #????????????????????? | | ## ###### ##??# ####????????????????????? | | ## ## #??## #???????????????????????? | | ## # #???## ##???????????????????????? | | ?#### # #????#; ##????????????????????????? | | ????## # # ##???## ;#?????????????????????????? | | ?????## # #????# ##?????????????????????????? | | ??????## # #????# ###????????????????????????? | | ???????## ##????# ##???????????????????????? | | ????????## ######## #???????????????????????? | | ?????????# ### ## #???????????????????????? | | ?????????# ## #???????????????????????? | | ????????## ## ##???????????????????????# | | ????????# # #????????????????????????" | | ????????# ## ##### #????????????????????????" | | ????????# ## ##????##???###?????####?????????" | | ????????# ########???# ##???## ##????????# | | ????????# #?### #???# #####????? | | ????????# # #?# #???# ##???? | | ?????? ## ## ### %#???# ##??? | | ??? ?# ## ## ##?## ##?? | | ??#########?### ### # ### ### | | ???????????##?# ##?# ## | | ??????????## ## #??# ##### | +----------------------------------------------------+ Best States ------------- Heat Dissipation 48 Coolant Potential 65 Energy Generation 31 Energy Capacity 520 Matter Stores 300 Matter Capacity 300 Sight Range 16 Robot Scan Range 13 Terrain Scan Range 24 Terrain Scan Density 110 Armor Coverage 600 Resistance: KI 30 Resistance: EM 15 Core Shielding 20 Melee Speed Boost 40 Evasion (%) 74 Targeting Accuracy 8 Melee Accuracy 16 Target Analysis 6 Armor Integrity Analysis 33 Recoil Reduction 3 Offensive Hacking 10 Defensive Hacking 10 Item Schematics ----------------- Microactuators | -7/Factory | Hacked Robot Schematics ------------------ None Fabricated ------------ Microactuators | x2 | -7/Factory Alien Tech Used ----------------- None Achievements -------------- None Challenges ------------ None Game ------ Seed XenonNeutralizingLog Manual? 0 Play Time 01:01:58 Cumulative 467.6 hours Start 2021.06.23 @ 22:51:01 End 2021.06.24 @ 00:28:21 Sessions 1 Manual Loads 0 Difficulty Rogue Special Mode None Game No. 353 Rogue 346 Adventurer 0 Explorer 7 Win Type - Total 22 Types 8/3/9/1/0/0/0/1/0 Lore% 86 Gallery% 94 Achievement% 80 Wizard Run 0 Options --------- ASCII 0 Keyboard 0 Movement Numpad Keybinds 0 Fullscreen 1 Font 18/X11Bold Map View 76x50 Tactical HUD 1 Map Filters NONE Filters NONE Steam 1 RUN: df9c5fe4-0c17-4549-ba71-788582d82daf